{"text_format":"1","workbook":"xlsx","n_sheets":4,"sheets":["طلا با سود و اجرت ","طلای خام","فرمت به کارفرما","توضیحات"],"not_rendered":{"charts":0,"images":0,"macros":1,"external_links":0,"defined_names":0,"comments":0,"pivot_tables":0},"unopened":[],"bounds":{"document_bytes":16777216,"sheet_cells":100000,"rows_first":2000,"rows_last":500,"rows_between":2000,"halvings":0,"cell_chars":16384,"cell_head_chars":4096},"cells_cut":0,"cells_raw":0,"read":"whole","date_system":"1900"}

{"sheet":"طلا با سود و اجرت ","index":0,"n_rows":200,"n_cols":39,"rows_kept":200,"cut":false,"hidden":false,"merged":[]}
["شماره فاکتور ","کد طرف حساب ","تاریخ ","نوع","الگو","موضوع","روش تسویه","کد کالا ","تعداد ","مبلغ واحد","مبلغ تخفیف",null,null,null,null,"اجرت ساخت","سود فروشنده",null,"عیار",null,null,null,null,null,null,null,null,null,null,null,null,null,null,"پرداخت شده ","اختلاف ","اجرت ","سود ","ارزش افزوده ","تعداد با اعشار"]
[100,100,"1404-06-24",{"$f":"IF(A2<>\"\",2,\"\")","v":2},{"$f":"IF(A2<>\"\",3,\"\")","v":3},{"$f":"IF(A2<>\"\",1,\"\")","v":1},{"$f":"IF(A2<>\"\",1,\"\")","v":1},100,{"$f":"IF(IF((ROUNDDOWN(AM2,4)*10000)-ROUNDDOWN(AM2,3)*10000>5,ROUNDUP(AM2,3)+0.001,ROUNDUP(AM2,3))=0,\"\",IF((ROUNDDOWN(AM2,4)*10000)-ROUNDDOWN(AM2,3)*10000>5,ROUNDUP(AM2,3)+0.001,ROUNDUP(AM2,3)))","v":3.9729999999999999},66050000,{"$f":"IF(AH2>0,IF(ROUNDDOWN(I2*J2,0)+ROUNDDOWN(ROUNDDOWN(I2*J2,0)*AJ2%,0)+ROUNDDOWN((ROUNDDOWN(I2*J2,0)+ROUNDDOWN(ROUNDDOWN(I2*J2,0)*AJ2%,0))*AK2%,0)+ROUNDDOWN((P2+Q2)*AL2%,0)-AH2>(I2*J2)*1%,0,IF(ROUNDDOWN(I2*J2,0)+ROUNDDOWN(ROUNDDOWN(I2*J2,0)*AJ2%,0)+ROUNDDOWN((ROUNDDOWN(I2*J2,0)+ROUNDDOWN(ROUNDDOWN(I2*J2,0)*AJ2%,0))*AK2%,0)+ROUNDDOWN((P2+Q2)*AL2%,0)-AH2<0,0,ROUNDDOWN(I2*J2,0)+ROUNDDOWN(ROUNDDOWN(I2*J2,0)*AJ2%,0)+ROUNDDOWN((ROUNDDOWN(I2*J2,0)+ROUNDDOWN(ROUNDDOWN(I2*J2,0)*AJ2%,0))*AK2%,0)+ROUNDDOWN((P2+Q2)*AL2%,0)-AH2)),\"\")","v":2148313},null,null,null,null,{"$f":"IF(AH2>0,ROUNDDOWN(ROUNDDOWN(I2*J2,0)*AJ2%,0),\"\")","v":52483330},{"$f":"IF(AH2>0,ROUNDDOWN((ROUNDDOWN(I2*J2,0)+ROUNDDOWN(ROUNDDOWN(I2*J2,0)*AJ2%,0))*AK2%,0),\"\")","v":0},null,750,null,null,null,null,null,null,null,null,null,null,null,null,null,null,318000000,{"$f":"IF(AH2>0,ROUNDDOWN(I2*J2,0)+ROUNDDOWN(ROUNDDOWN(I2*J2,0)*AJ2%,0)+ROUNDDOWN((ROUNDDOWN(I2*J2,0)+ROUNDDOWN(ROUNDDOWN(I2*J2,0)*AJ2%,0))*AK2%,0)+ROUNDDOWN((P2+Q2)*AL2%,0)-AH2-K2,\"\")","v":0},20,0,10,3.97227392489068]
[{"$f":"IF(AH3>0,A2+1,\"\")","v":101},{"$f":"IF(AH3>0,B2,\"\")","v":100},"1404-06-24",{"$f":"IF(A3<>\"\",2,\"\")","v":2},{"$f":"IF(A3<>\"\",3,\"\")","v":3},{"$f":"IF(A3<>\"\",1,\"\")","v":1},{"$f":"IF(A3<>\"\",1,\"\")","v":1},{"$f":"IF(AH3>0,B2,\"\")","v":100},{"$f":"IF(IF((ROUNDDOWN(AM3,4)*10000)-ROUNDDOWN(AM3,3)*10000>5,ROUNDUP(AM3,3)+0.001,ROUNDUP(AM3,3))=0,\"\",IF((ROUNDDOWN(AM3,4)*10000)-ROUNDDOWN(AM3,3)*10000>5,ROUNDUP(AM3,3)+0.001,ROUNDUP(AM3,3)))","v":5.0380000000000003},52850000,{"$f":"IF(AH3>0,IF(ROUNDDOWN(I3*J3,0)+ROUNDDOWN(ROUNDDOWN(I3*J3,0)*AJ3%,0)+ROUNDDOWN((ROUNDDOWN(I3*J3,0)+ROUNDDOWN(ROUNDDOWN(I3*J3,0)*AJ3%,0))*AK3%,0)+ROUNDDOWN((P3+Q3)*AL3%,0)-AH3>(I3*J3)*1%,0,IF(ROUNDDOWN(I3*J3,0)+ROUNDDOWN(ROUNDDOWN(I3*J3,0)*AJ3%,0)+ROUNDDOWN((ROUNDDOWN(I3*J3,0)+ROUNDDOWN(ROUNDDOWN(I3*J3,0)*AJ3%,0))*AK3%,0)+ROUNDDOWN((P3+Q3)*AL3%,0)-AH3<0,0,ROUNDDOWN(I3*J3,0)+ROUNDDOWN(ROUNDDOWN(I3*J3,0)*AJ3%,0)+ROUNDDOWN((ROUNDDOWN(I3*J3,0)+ROUNDDOWN(ROUNDDOWN(I3*J3,0)*AJ3%,0))*AK3%,0)+ROUNDDOWN((P3+Q3)*AL3%,0)-AH3)),\"\")","v":98790},null,null,null,null,{"$f":"IF(AH3>0,ROUNDDOWN(ROUNDDOWN(I3*J3,0)*AJ3%,0),\"\")","v":26625830},{"$f":"IF(AH3>0,ROUNDDOWN((ROUNDDOWN(I3*J3,0)+ROUNDDOWN(ROUNDDOWN(I3*J3,0)*AJ3%,0))*AK3%,0),\"\")","v":20501889},null,{"$f":"IF(AH3>0,S2,\"\")","v":750},null,null,null,null,null,null,null,null,null,null,null,null,null,null,318000000,{"$f":"IF(AH3>0,ROUNDDOWN(I3*J3,0)+ROUNDDOWN(ROUNDDOWN(I3*J3,0)*AJ3%,0)+ROUNDDOWN((ROUNDDOWN(I3*J3,0)+ROUNDDOWN(ROUNDDOWN(I3*J3,0)*AJ3%,0))*AK3%,0)+ROUNDDOWN((P3+Q3)*AL3%,0)-AH3-K3,\"\")","v":0},10,7,10,5.0365527172021558]
[{"$f":"IF(AH4>0,A3+1,\"\")","v":102},{"$f":"IF(AH4>0,B3,\"\")","v":100},"1404-06-24",2,3,1,1,{"$f":"IF(AH4>0,B3,\"\")","v":100},4.9850000000000003,52370000,39154,null,null,null,null,31327734,20467452,null,{"$f":"IF(AH4>0,S3,\"\")","v":750},null,null,null,null,null,null,null,null,null,null,null,null,null,null,318000000,0,12,7,10,4.9838799004401055]
[103,100,"1404-06-24",2,3,1,1,100,4.6080000000000005,53550000,37030,null,null,null,null,44416512,20382243,null,750,null,null,null,null,null,null,null,null,null,null,null,null,null,null,318000000,0,18,7,10,4.606600251129171]
[104,100,"1404-06-24",2,3,1,1,100,5.0390000000000006,52310000,13533,null,null,null,null,28994909,20480949,null,750,null,null,null,null,null,null,null,null,null,null,null,null,null,null,318000000,0,11,7,10,5.038149657261779]
[105,100,"1404-06-24",2,3,1,1,100,5.0890000000000004,52310000,35817,null,null,null,null,26620559,20497830,null,750,null,null,null,null,null,null,null,null,null,null,null,null,null,null,318000000,0,10,7,10,5.0878546093300789]
[106,100,"1404-06-24",2,3,1,1,100,5.1180000000000003,52530000,29002,null,null,null,null,24196368,20513143,null,750,null,null,null,null,null,null,null,null,null,null,null,null,null,null,318000000,0,9,7,10,5.1170369384586918]
[107,100,"1404-06-24",2,3,1,1,100,4.6480000000000006,56170000,55856,null,null,null,null,31329379,20468527,null,750,null,null,null,null,null,null,null,null,null,null,null,null,null,null,318000000,0,12,7,10,4.6468851081011984]
[108,100,"1404-06-24",2,3,1,1,100,4.8060000000000009,55940000,27937,null,null,null,null,24196287,20513074,null,750,null,null,null,null,null,null,null,null,null,null,null,null,null,null,318000000,0,9,7,10,4.804645757053879]
["","",null,"","","","","","",null,"",null,null,null,null,"","",null,"",null,null,null,null,null,null,null,null,null,null,null,null,null,null,null,""]
["","",null,"","","","","","",null,"",null,null,null,null,"","",null,"",null,null,null,null,null,null,null,null,null,null,null,null,null,null,null,""]
["","",null,"","","","","","",null,"",null,null,null,null,"","",null,"",null,null,null,null,null,null,null,null,null,null,null,null,null,null,null,""]
["","",null,"","","","","","",null,"",null,null,null,null,"","",null,"",null,null,null,null,null,null,null,null,null,null,null,null,null,null,null,""]
["","",null,"","","","","","",null,"",null,null,null,null,"","",null,"",null,null,null,null,null,null,null,null,null,null,null,null,null,null,null,""]
["","",null,"","","","","","",null,"",null,null,null,null,"","",null,"",null,null,null,null,null,null,null,null,null,null,null,null,null,null,null,""]
["","",null,"","","","","","",null,"",null,null,null,null,"","",null,"",null,null,null,null,null,null,null,null,null,null,null,null,null,null,null,""]
["","",null,"","","","","","",null,"",null,null,null,null,"","",null,"",null,null,null,null,null,null,null,null,null,null,null,null,null,null,null,""]
["","",null,"","","","","","",null,"",null,null,null,null,"","",null,"",null,null,null,null,null,null,null,null,null,null,null,null,null,null,null,""]
["","",null,"","","","","","",null,"",null,null,null,null,"","",null,"",null,null,null,null,null,null,null,null,null,null,null,null,null,null,null,""]
["","",null,"","","","","","",null,"",null,null,null,null,"","",null,"",null,null,null,null,null,null,null,null,null,null,null,null,null,null,null,""]
["","",null,"","","","","","",null,"",null,null,null,null,"","",null,"",null,null,null,null,null,null,null,null,null,null,null,null,null,null,null,""]
["","",null,"","","","","","",null,"",null,null,null,null,"","",null,"",null,null,null,null,null,null,null,null,null,null,null,null,null,null,null,""]
["","",null,"","","","","","",null,"",null,null,null,null,"","",null,"",null,null,null,null,null,null,null,null,null,null,null,null,null,null,null,""]
["","",null,"","","","","","",null,"",null,null,null,null,"","",null,"",null,null,null,null,null,null,null,null,null,null,null,null,null,null,null,""]
["","",null,"","","","","","",null,"",null,null,null,null,"","",null,"",null,null,null,null,null,null,null,null,null,null,null,null,null,null,null,""]
["","",null,"","","","","","",null,"",null,null,null,null,"","",null,"",null,null,null,null,null,null,null,null,null,null,null,null,null,null,null,""]
["","",null,"","","","","","",null,"",null,null,null,null,"","",null,"",null,null,null,null,null,null,null,null,null,null,null,null,null,null,null,""]
["","",null,"","","","","","",null,"",null,null,null,null,"","",null,"",null,null,null,null,null,null,null,null,null,null,null,null,null,null,null,""]
["","",null,"","","","","","",null,"",null,null,null,null,"","",null,"",null,null,null,null,null,null,null,null,null,null,null,null,null,null,null,""]
["","",null,"","","","","","",null,"",null,null,null,null,"","",null,"",null,null,null,null,null,null,null,null,null,null,null,null,null,null,null,""]
["","",null,"","","","","","",null,"",null,null,null,null,"","",null,"",null,null,null,null,null,null,null,null,null,null,null,null,null,null,null,""]
["","",null,"","","","","","",null,"",null,null,null,null,"","",null,"",null,null,null,null,null,null,null,null,null,null,null,null,null,null,null,""]
["","",null,"","","","","","",null,"",null,null,null,null,"","",null,"",null,null,null,null,null,null,null,null,null,null,null,null,null,null,null,""]
["","",null,"","","","","","",null,"",null,null,null,null,"","",null,"",null,null,null,null,null,null,null,null,null,null,null,null,null,null,null,""]
["","",null,"","","","","","",null,"",null,null,null,null,"","",null,"",null,null,null,null,null,null,null,null,null,null,null,null,null,null,null,""]
["","",null,"","","","","","",null,"",null,null,null,null,"","",null,"",null,null,null,null,null,null,null,null,null,null,null,null,null,null,null,""]
["","",null,"","","","","","",null,"",null,null,null,null,"","",null,"",null,null,null,null,null,null,null,null,null,null,null,null,null,null,null,""]
["","",null,"","","","","","",null,"",null,null,null,null,"","",null,"",null,null,null,null,null,null,null,null,null,null,null,null,null,null,null,""]
["","",null,"","","","","","",null,"",null,null,null,null,"","",null,"",null,null,null,null,null,null,null,null,null,null,null,null,null,null,null,""]
["","",null,"","","","","","",null,"",null,null,null,null,"","",null,"",null,null,null,null,null,null,null,null,null,null,null,null,null,null,null,""]
["","",null,"","","","","","",null,"",null,null,null,null,"","",null,"",null,null,null,null,null,null,null,null,null,null,null,null,null,null,null,""]
["","",null,"","","","","","",null,"",null,null,null,null,"","",null,"",null,null,null,null,null,null,null,null,null,null,null,null,null,null,null,""]
["","",null,"","","","","","",null,"",null,null,null,null,"","",null,"",null,null,null,null,null,null,null,null,null,null,null,null,null,null,null,""]
["","",null,"","","","","","",null,"",null,null,null,null,"","",null,"",null,null,null,null,null,null,null,null,null,null,null,null,null,null,null,""]
["","",null,"","","","","","",null,"",null,null,null,null,"","",null,"",null,null,null,null,null,null,null,null,null,null,null,null,null,null,null,""]
["","",null,"","","","","","",null,"",null,null,null,null,"","",null,"",null,null,null,null,null,null,null,null,null,null,null,null,null,null,null,""]
["","",null,"","","","","","",null,"",null,null,null,null,"","",null,"",null,null,null,null,null,null,null,null,null,null,null,null,null,null,null,""]
["","",null,"","","","","","",null,"",null,null,null,null,"","",null,"",null,null,null,null,null,null,null,null,null,null,null,null,null,null,null,""]
["","",null,"","","","","","",null,"",null,null,null,null,"","",null,"",null,null,null,null,null,null,null,null,null,null,null,null,null,null,null,""]
["","",null,"","","","","","",null,"",null,null,null,null,"","",null,"",null,null,null,null,null,null,null,null,null,null,null,null,null,null,null,""]
["","",null,"","","","","","",null,"",null,null,null,null,"","",null,"",null,null,null,null,null,null,null,null,null,null,null,null,null,null,null,""]
["","",null,"","","","","","",null,"",null,null,null,null,"","",null,"",null,null,null,null,null,null,null,null,null,null,null,null,null,null,null,""]
["","",null,"","","","","","",null,"",null,null,null,null,"","",null,"",null,null,null,null,null,null,null,null,null,null,null,null,null,null,null,""]
["","",null,"","","","","","",null,"",null,null,null,null,"","",null,"",null,null,null,null,null,null,null,null,null,null,null,null,null,null,null,""]
["","",null,"","","","","","",null,"",null,null,null,null,"","",null,"",null,null,null,null,null,null,null,null,null,null,null,null,null,null,null,""]
["","",null,"","","","","","",null,"",null,null,null,null,"","",null,"",null,null,null,null,null,null,null,null,null,null,null,null,null,null,null,""]
["","",null,"","","","","","",null,"",null,null,null,null,"","",null,"",null,null,null,null,null,null,null,null,null,null,null,null,null,null,null,""]
["","",null,"","","","","","",null,"",null,null,null,null,"","",null,"",null,null,null,null,null,null,null,null,null,null,null,null,null,null,null,""]
["","",null,"","","","","","",null,"",null,null,null,null,"","",null,"",null,null,null,null,null,null,null,null,null,null,null,null,null,null,null,""]
["","",null,"","","","","","",null,"",null,null,null,null,"","",null,"",null,null,null,null,null,null,null,null,null,null,null,null,null,null,null,""]
["","",null,"","","","","","",null,"",null,null,null,null,"","",null,"",null,null,null,null,null,null,null,null,null,null,null,null,null,null,null,""]
["","",null,"","","","","","",null,"",null,null,null,null,"","",null,"",null,null,null,null,null,null,null,null,null,null,null,null,null,null,null,""]
["","",null,"","","","","","",null,"",null,null,null,null,"","",null,"",null,null,null,null,null,null,null,null,null,null,null,null,null,null,null,""]
["","",null,"","","","","","",null,"",null,null,null,null,"","",null,"",null,null,null,null,null,null,null,null,null,null,null,null,null,null,null,""]
["","",null,"","","","","","",null,"",null,null,null,null,"","",null,"",null,null,null,null,null,null,null,null,null,null,null,null,null,null,null,""]
["","",null,{"$f":"IF(A67<>\"\",2,\"\")","v":""},{"$f":"IF(A67<>\"\",3,\"\")","v":""},{"$f":"IF(A67<>\"\",1,\"\")","v":""},{"$f":"IF(A67<>\"\",1,\"\")","v":""},"",{"$f":"IF(IF((ROUNDDOWN(AM67,4)*10000)-ROUNDDOWN(AM67,3)*10000>5,ROUNDUP(AM67,3)+0.001,ROUNDUP(AM67,3))=0,\"\",IF((ROUNDDOWN(AM67,4)*10000)-ROUNDDOWN(AM67,3)*10000>5,ROUNDUP(AM67,3)+0.001,ROUNDUP(AM67,3)))","v":""},null,{"$f":"IF(AH67>0,IF(ROUNDDOWN(I67*J67,0)+ROUNDDOWN(ROUNDDOWN(I67*J67,0)*AJ67%,0)+ROUNDDOWN((ROUNDDOWN(I67*J67,0)+ROUNDDOWN(ROUNDDOWN(I67*J67,0)*AJ67%,0))*AK67%,0)+ROUNDDOWN((P67+Q67)*AL67%,0)-AH67>(I67*J67)*1%,0,IF(ROUNDDOWN(I67*J67,0)+ROUNDDOWN(ROUNDDOWN(I67*J67,0)*AJ67%,0)+ROUNDDOWN((ROUNDDOWN(I67*J67,0)+ROUNDDOWN(ROUNDDOWN(I67*J67,0)*AJ67%,0))*AK67%,0)+ROUNDDOWN((P67+Q67)*AL67%,0)-AH67<0,0,ROUNDDOWN(I67*J67,0)+ROUNDDOWN(ROUNDDOWN(I67*J67,0)*AJ67%,0)+ROUNDDOWN((ROUNDDOWN(I67*J67,0)+ROUNDDOWN(ROUNDDOWN(I67*J67,0)*AJ67%,0))*AK67%,0)+ROUNDDOWN((P67+Q67)*AL67%,0)-AH67)),\"\")","v":""},null,null,null,null,{"$f":"IF(AH67>0,ROUNDDOWN(ROUNDDOWN(I67*J67,0)*AJ67%,0),\"\")","v":""},{"$f":"IF(AH67>0,ROUNDDOWN((ROUNDDOWN(I67*J67,0)+ROUNDDOWN(ROUNDDOWN(I67*J67,0)*AJ67%,0))*AK67%,0),\"\")","v":""},null,"",null,null,null,null,null,null,null,null,null,null,null,null,null,null,null,{"$f":"IF(AH67>0,ROUNDDOWN(I67*J67,0)+ROUNDDOWN(ROUNDDOWN(I67*J67,0)*AJ67%,0)+ROUNDDOWN((ROUNDDOWN(I67*J67,0)+ROUNDDOWN(ROUNDDOWN(I67*J67,0)*AJ67%,0))*AK67%,0)+ROUNDDOWN((P67+Q67)*AL67%,0)-AH67-K67,\"\")","v":""}]
[{"$f":"IF(AH68>0,A67+1,\"\")","v":""},{"$f":"IF(AH68>0,B67,\"\")","v":""},null,"","","","",{"$f":"IF(AH68>0,B67,\"\")","v":""},"",null,"",null,null,null,null,"","",null,{"$f":"IF(AH68>0,S67,\"\")","v":""},null,null,null,null,null,null,null,null,null,null,null,null,null,null,null,""]
["","",null,"","","","","","",null,"",null,null,null,null,"","",null,"",null,null,null,null,null,null,null,null,null,null,null,null,null,null,null,""]
["","",null,"","","","","","",null,"",null,null,null,null,"","",null,"",null,null,null,null,null,null,null,null,null,null,null,null,null,null,null,""]
["","",null,"","","","","","",null,"",null,null,null,null,"","",null,"",null,null,null,null,null,null,null,null,null,null,null,null,null,null,null,""]
["","",null,"","","","","","",null,"",null,null,null,null,"","",null,"",null,null,null,null,null,null,null,null,null,null,null,null,null,null,null,""]
["","",null,"","","","","","",null,"",null,null,null,null,"","",null,"",null,null,null,null,null,null,null,null,null,null,null,null,null,null,null,""]
["","",null,"","","","","","",null,"",null,null,null,null,"","",null,"",null,null,null,null,null,null,null,null,null,null,null,null,null,null,null,""]
["","",null,"","","","","","",null,"",null,null,null,null,"","",null,"",null,null,null,null,null,null,null,null,null,null,null,null,null,null,null,""]
["","",null,"","","","","","",null,"",null,null,null,null,"","",null,"",null,null,null,null,null,null,null,null,null,null,null,null,null,null,null,""]
["","",null,"","","","","","",null,"",null,null,null,null,"","",null,"",null,null,null,null,null,null,null,null,null,null,null,null,null,null,null,""]
["","",null,"","","","","","",null,"",null,null,null,null,"","",null,"",null,null,null,null,null,null,null,null,null,null,null,null,null,null,null,""]
["","",null,"","","","","","",null,"",null,null,null,null,"","",null,"",null,null,null,null,null,null,null,null,null,null,null,null,null,null,null,""]
["","",null,"","","","","","",null,"",null,null,null,null,"","",null,"",null,null,null,null,null,null,null,null,null,null,null,null,null,null,null,""]
["","",null,"","","","","","",null,"",null,null,null,null,"","",null,"",null,null,null,null,null,null,null,null,null,null,null,null,null,null,null,""]
["","",null,"","","","","","",null,"",null,null,null,null,"","",null,"",null,null,null,null,null,null,null,null,null,null,null,null,null,null,null,""]
["","",null,"","","","","","",null,"",null,null,null,null,"","",null,"",null,null,null,null,null,null,null,null,null,null,null,null,null,null,null,""]
["","",null,"","","","","","",null,"",null,null,null,null,"","",null,"",null,null,null,null,null,null,null,null,null,null,null,null,null,null,null,""]
["","",null,"","","","","","",null,"",null,null,null,null,"","",null,"",null,null,null,null,null,null,null,null,null,null,null,null,null,null,null,""]
["","",null,"","","","","","",null,"",null,null,null,null,"","",null,"",null,null,null,null,null,null,null,null,null,null,null,null,null,null,null,""]
["","",null,"","","","","","",null,"",null,null,null,null,"","",null,"",null,null,null,null,null,null,null,null,null,null,null,null,null,null,null,""]
["","",null,"","","","","","",null,"",null,null,null,null,"","",null,"",null,null,null,null,null,null,null,null,null,null,null,null,null,null,null,""]
["","",null,"","","","","","",null,"",null,null,null,null,"","",null,"",null,null,null,null,null,null,null,null,null,null,null,null,null,null,null,""]
["","",null,"","","","","","",null,"",null,null,null,null,"","",null,"",null,null,null,null,null,null,null,null,null,null,null,null,null,null,null,""]
["","",null,"","","","","","",null,"",null,null,null,null,"","",null,"",null,null,null,null,null,null,null,null,null,null,null,null,null,null,null,""]
["","",null,"","","","","","",null,"",null,null,null,null,"","",null,"",null,null,null,null,null,null,null,null,null,null,null,null,null,null,null,""]
["","",null,"","","","","","",null,"",null,null,null,null,"","",null,"",null,null,null,null,null,null,null,null,null,null,null,null,null,null,null,""]
["","",null,"","","","","","",null,"",null,null,null,null,"","",null,"",null,null,null,null,null,null,null,null,null,null,null,null,null,null,null,""]
["","",null,"","","","","","",null,"",null,null,null,null,"","",null,"",null,null,null,null,null,null,null,null,null,null,null,null,null,null,null,""]
["","",null,"","","","","","",null,"",null,null,null,null,"","",null,"",null,null,null,null,null,null,null,null,null,null,null,null,null,null,null,""]
["","",null,"","","","","","",null,"",null,null,null,null,"","",null,"",null,null,null,null,null,null,null,null,null,null,null,null,null,null,null,""]
["","",null,"","","","","","",null,"",null,null,null,null,"","",null,"",null,null,null,null,null,null,null,null,null,null,null,null,null,null,null,""]
["","",null,"","","","","","",null,"",null,null,null,null,"","",null,"",null,null,null,null,null,null,null,null,null,null,null,null,null,null,null,""]
["","",null,"","","","","","",null,"",null,null,null,null,"","",null,"",null,null,null,null,null,null,null,null,null,null,null,null,null,null,null,""]
["","",null,"","","","","","",null,"",null,null,null,null,"","",null,"",null,null,null,null,null,null,null,null,null,null,null,null,null,null,null,""]
["","",null,"","","","","","",null,"",null,null,null,null,"","",null,"",null,null,null,null,null,null,null,null,null,null,null,null,null,null,null,""]
["","",null,"","","","","","",null,"",null,null,null,null,"","",null,"",null,null,null,null,null,null,null,null,null,null,null,null,null,null,null,""]
["","",null,"","","","","","",null,"",null,null,null,null,"","",null,"",null,null,null,null,null,null,null,null,null,null,null,null,null,null,null,""]
["","",null,"","","","","","",null,"",null,null,null,null,"","",null,"",null,null,null,null,null,null,null,null,null,null,null,null,null,null,null,""]
["","",null,"","","","","","",null,"",null,null,null,null,"","",null,"",null,null,null,null,null,null,null,null,null,null,null,null,null,null,null,""]
["","",null,"","","","","","",null,"",null,null,null,null,"","",null,"",null,null,null,null,null,null,null,null,null,null,null,null,null,null,null,""]
["","",null,"","","","","","",null,"",null,null,null,null,"","",null,"",null,null,null,null,null,null,null,null,null,null,null,null,null,null,null,""]
["","",null,"","","","","","",null,"",null,null,null,null,"","",null,"",null,null,null,null,null,null,null,null,null,null,null,null,null,null,null,""]
["","",null,"","","","","","",null,"",null,null,null,null,"","",null,"",null,null,null,null,null,null,null,null,null,null,null,null,null,null,null,""]
["","",null,"","","","","","",null,"",null,null,null,null,"","",null,"",null,null,null,null,null,null,null,null,null,null,null,null,null,null,null,""]
["","",null,"","","","","","",null,"",null,null,null,null,"","",null,"",null,null,null,null,null,null,null,null,null,null,null,null,null,null,null,""]
["","",null,"","","","","","",null,"",null,null,null,null,"","",null,"",null,null,null,null,null,null,null,null,null,null,null,null,null,null,null,""]
["","",null,"","","","","","",null,"",null,null,null,null,"","",null,"",null,null,null,null,null,null,null,null,null,null,null,null,null,null,null,""]
["","",null,"","","","","","",null,"",null,null,null,null,"","",null,"",null,null,null,null,null,null,null,null,null,null,null,null,null,null,null,""]
["","",null,"","","","","","",null,"",null,null,null,null,"","",null,"",null,null,null,null,null,null,null,null,null,null,null,null,null,null,null,""]
["","",null,"","","","","","",null,"",null,null,null,null,"","",null,"",null,null,null,null,null,null,null,null,null,null,null,null,null,null,null,""]
["","",null,"","","","","","",null,"",null,null,null,null,"","",null,"",null,null,null,null,null,null,null,null,null,null,null,null,null,null,null,""]
["","",null,"","","","","","",null,"",null,null,null,null,"","",null,"",null,null,null,null,null,null,null,null,null,null,null,null,null,null,null,""]
["","",null,"","","","","","",null,"",null,null,null,null,"","",null,"",null,null,null,null,null,null,null,null,null,null,null,null,null,null,null,""]
["","",null,"","","","","","",null,"",null,null,null,null,"","",null,"",null,null,null,null,null,null,null,null,null,null,null,null,null,null,null,""]
["","",null,"","","","","","",null,"",null,null,null,null,"","",null,"",null,null,null,null,null,null,null,null,null,null,null,null,null,null,null,""]
["","",null,"","","","","","",null,"",null,null,null,null,"","",null,"",null,null,null,null,null,null,null,null,null,null,null,null,null,null,null,""]
["","",null,"","","","","","",null,"",null,null,null,null,"","",null,"",null,null,null,null,null,null,null,null,null,null,null,null,null,null,null,""]
["","",null,"","","","","","",null,"",null,null,null,null,"","",null,"",null,null,null,null,null,null,null,null,null,null,null,null,null,null,null,""]
["","",null,"","","","","","",null,"",null,null,null,null,"","",null,"",null,null,null,null,null,null,null,null,null,null,null,null,null,null,null,""]
["","",null,"","","","","","",null,"",null,null,null,null,"","",null,"",null,null,null,null,null,null,null,null,null,null,null,null,null,null,null,""]
["","",null,"","","","","","",null,"",null,null,null,null,"","",null,"",null,null,null,null,null,null,null,null,null,null,null,null,null,null,null,""]
["","",null,"","","","","","",null,"",null,null,null,null,"","",null,"",null,null,null,null,null,null,null,null,null,null,null,null,null,null,null,""]
["","",null,"","","","","","",null,"",null,null,null,null,"","",null,"",null,null,null,null,null,null,null,null,null,null,null,null,null,null,null,""]
["","",null,{"$f":"IF(A131<>\"\",2,\"\")","v":""},{"$f":"IF(A131<>\"\",3,\"\")","v":""},{"$f":"IF(A131<>\"\",1,\"\")","v":""},{"$f":"IF(A131<>\"\",1,\"\")","v":""},"",{"$f":"IF(IF((ROUNDDOWN(AM131,4)*10000)-ROUNDDOWN(AM131,3)*10000>5,ROUNDUP(AM131,3)+0.001,ROUNDUP(AM131,3))=0,\"\",IF((ROUNDDOWN(AM131,4)*10000)-ROUNDDOWN(AM131,3)*10000>5,ROUNDUP(AM131,3)+0.001,ROUNDUP(AM131,3)))","v":""},null,{"$f":"IF(AH131>0,IF(ROUNDDOWN(I131*J131,0)+ROUNDDOWN(ROUNDDOWN(I131*J131,0)*AJ131%,0)+ROUNDDOWN((ROUNDDOWN(I131*J131,0)+ROUNDDOWN(ROUNDDOWN(I131*J131,0)*AJ131%,0))*AK131%,0)+ROUNDDOWN((P131+Q131)*AL131%,0)-AH131>(I131*J131)*1%,0,IF(ROUNDDOWN(I131*J131,0)+ROUNDDOWN(ROUNDDOWN(I131*J131,0)*AJ131%,0)+ROUNDDOWN((ROUNDDOWN(I131*J131,0)+ROUNDDOWN(ROUNDDOWN(I131*J131,0)*AJ131%,0))*AK131%,0)+ROUNDDOWN((P131+Q131)*AL131%,0)-AH131<0,0,ROUNDDOWN(I131*J131,0)+ROUNDDOWN(ROUNDDOWN(I131*J131,0)*AJ131%,0)+ROUNDDOWN((ROUNDDOWN(I131*J131,0)+ROUNDDOWN(ROUNDDOWN(I131*J131,0)*AJ131%,0))*AK131%,0)+ROUNDDOWN((P131+Q131)*AL131%,0)-AH131)),\"\")","v":""},null,null,null,null,{"$f":"IF(AH131>0,ROUNDDOWN(ROUNDDOWN(I131*J131,0)*AJ131%,0),\"\")","v":""},{"$f":"IF(AH131>0,ROUNDDOWN((ROUNDDOWN(I131*J131,0)+ROUNDDOWN(ROUNDDOWN(I131*J131,0)*AJ131%,0))*AK131%,0),\"\")","v":""},null,"",null,null,null,null,null,null,null,null,null,null,null,null,null,null,null,{"$f":"IF(AH131>0,ROUNDDOWN(I131*J131,0)+ROUNDDOWN(ROUNDDOWN(I131*J131,0)*AJ131%,0)+ROUNDDOWN((ROUNDDOWN(I131*J131,0)+ROUNDDOWN(ROUNDDOWN(I131*J131,0)*AJ131%,0))*AK131%,0)+ROUNDDOWN((P131+Q131)*AL131%,0)-AH131-K131,\"\")","v":""}]
[{"$f":"IF(AH132>0,A131+1,\"\")","v":""},{"$f":"IF(AH132>0,B131,\"\")","v":""},null,"","","","",{"$f":"IF(AH132>0,B131,\"\")","v":""},"",null,"",null,null,null,null,"","",null,{"$f":"IF(AH132>0,S131,\"\")","v":""},null,null,null,null,null,null,null,null,null,null,null,null,null,null,null,""]
["","",null,"","","","","","",null,"",null,null,null,null,"","",null,"",null,null,null,null,null,null,null,null,null,null,null,null,null,null,null,""]
["","",null,"","","","","","",null,"",null,null,null,null,"","",null,"",null,null,null,null,null,null,null,null,null,null,null,null,null,null,null,""]
["","",null,"","","","","","",null,"",null,null,null,null,"","",null,"",null,null,null,null,null,null,null,null,null,null,null,null,null,null,null,""]
["","",null,"","","","","","",null,"",null,null,null,null,"","",null,"",null,null,null,null,null,null,null,null,null,null,null,null,null,null,null,""]
["","",null,"","","","","","",null,"",null,null,null,null,"","",null,"",null,null,null,null,null,null,null,null,null,null,null,null,null,null,null,""]
["","",null,"","","","","","",null,"",null,null,null,null,"","",null,"",null,null,null,null,null,null,null,null,null,null,null,null,null,null,null,""]
["","",null,"","","","","","",null,"",null,null,null,null,"","",null,"",null,null,null,null,null,null,null,null,null,null,null,null,null,null,null,""]
["","",null,"","","","","","",null,"",null,null,null,null,"","",null,"",null,null,null,null,null,null,null,null,null,null,null,null,null,null,null,""]
["","",null,"","","","","","",null,"",null,null,null,null,"","",null,"",null,null,null,null,null,null,null,null,null,null,null,null,null,null,null,""]
["","",null,"","","","","","",null,"",null,null,null,null,"","",null,"",null,null,null,null,null,null,null,null,null,null,null,null,null,null,null,""]
["","",null,"","","","","","",null,"",null,null,null,null,"","",null,"",null,null,null,null,null,null,null,null,null,null,null,null,null,null,null,""]
["","",null,"","","","","","",null,"",null,null,null,null,"","",null,"",null,null,null,null,null,null,null,null,null,null,null,null,null,null,null,""]
["","",null,"","","","","","",null,"",null,null,null,null,"","",null,"",null,null,null,null,null,null,null,null,null,null,null,null,null,null,null,""]
["","",null,"","","","","","",null,"",null,null,null,null,"","",null,"",null,null,null,null,null,null,null,null,null,null,null,null,null,null,null,""]
["","",null,"","","","","","",null,"",null,null,null,null,"","",null,"",null,null,null,null,null,null,null,null,null,null,null,null,null,null,null,""]
["","",null,"","","","","","",null,"",null,null,null,null,"","",null,"",null,null,null,null,null,null,null,null,null,null,null,null,null,null,null,""]
["","",null,"","","","","","",null,"",null,null,null,null,"","",null,"",null,null,null,null,null,null,null,null,null,null,null,null,null,null,null,""]
["","",null,"","","","","","",null,"",null,null,null,null,"","",null,"",null,null,null,null,null,null,null,null,null,null,null,null,null,null,null,""]
["","",null,"","","","","","",null,"",null,null,null,null,"","",null,"",null,null,null,null,null,null,null,null,null,null,null,null,null,null,null,""]
["","",null,"","","","","","",null,"",null,null,null,null,"","",null,"",null,null,null,null,null,null,null,null,null,null,null,null,null,null,null,""]
["","",null,"","","","","","",null,"",null,null,null,null,"","",null,"",null,null,null,null,null,null,null,null,null,null,null,null,null,null,null,""]
["","",null,"","","","","","",null,"",null,null,null,null,"","",null,"",null,null,null,null,null,null,null,null,null,null,null,null,null,null,null,""]
["","",null,"","","","","","",null,"",null,null,null,null,"","",null,"",null,null,null,null,null,null,null,null,null,null,null,null,null,null,null,""]
["","",null,"","","","","","",null,"",null,null,null,null,"","",null,"",null,null,null,null,null,null,null,null,null,null,null,null,null,null,null,""]
["","",null,"","","","","","",null,"",null,null,null,null,"","",null,"",null,null,null,null,null,null,null,null,null,null,null,null,null,null,null,""]
["","",null,"","","","","","",null,"",null,null,null,null,"","",null,"",null,null,null,null,null,null,null,null,null,null,null,null,null,null,null,""]
["","",null,"","","","","","",null,"",null,null,null,null,"","",null,"",null,null,null,null,null,null,null,null,null,null,null,null,null,null,null,""]
["","",null,"","","","","","",null,"",null,null,null,null,"","",null,"",null,null,null,null,null,null,null,null,null,null,null,null,null,null,null,""]
["","",null,"","","","","","",null,"",null,null,null,null,"","",null,"",null,null,null,null,null,null,null,null,null,null,null,null,null,null,null,""]
["","",null,"","","","","","",null,"",null,null,null,null,"","",null,"",null,null,null,null,null,null,null,null,null,null,null,null,null,null,null,""]
["","",null,"","","","","","",null,"",null,null,null,null,"","",null,"",null,null,null,null,null,null,null,null,null,null,null,null,null,null,null,""]
["","",null,"","","","","","",null,"",null,null,null,null,"","",null,"",null,null,null,null,null,null,null,null,null,null,null,null,null,null,null,""]
["","",null,"","","","","","",null,"",null,null,null,null,"","",null,"",null,null,null,null,null,null,null,null,null,null,null,null,null,null,null,""]
["","",null,"","","","","","",null,"",null,null,null,null,"","",null,"",null,null,null,null,null,null,null,null,null,null,null,null,null,null,null,""]
["","",null,"","","","","","",null,"",null,null,null,null,"","",null,"",null,null,null,null,null,null,null,null,null,null,null,null,null,null,null,""]
["","",null,"","","","","","",null,"",null,null,null,null,"","",null,"",null,null,null,null,null,null,null,null,null,null,null,null,null,null,null,""]
["","",null,"","","","","","",null,"",null,null,null,null,"","",null,"",null,null,null,null,null,null,null,null,null,null,null,null,null,null,null,""]
["","",null,"","","","","","",null,"",null,null,null,null,"","",null,"",null,null,null,null,null,null,null,null,null,null,null,null,null,null,null,""]
["","",null,"","","","","","",null,"",null,null,null,null,"","",null,"",null,null,null,null,null,null,null,null,null,null,null,null,null,null,null,""]
["","",null,"","","","","","",null,"",null,null,null,null,"","",null,"",null,null,null,null,null,null,null,null,null,null,null,null,null,null,null,""]
["","",null,"","","","","","",null,"",null,null,null,null,"","",null,"",null,null,null,null,null,null,null,null,null,null,null,null,null,null,null,""]
["","",null,"","","","","","",null,"",null,null,null,null,"","",null,"",null,null,null,null,null,null,null,null,null,null,null,null,null,null,null,""]
["","",null,"","","","","","",null,"",null,null,null,null,"","",null,"",null,null,null,null,null,null,null,null,null,null,null,null,null,null,null,""]
["","",null,"","","","","","",null,"",null,null,null,null,"","",null,"",null,null,null,null,null,null,null,null,null,null,null,null,null,null,null,""]
["","",null,"","","","","","",null,"",null,null,null,null,"","",null,"",null,null,null,null,null,null,null,null,null,null,null,null,null,null,null,""]
["","",null,"","","","","","",null,"",null,null,null,null,"","",null,"",null,null,null,null,null,null,null,null,null,null,null,null,null,null,null,""]
["","",null,"","","","","","",null,"",null,null,null,null,"","",null,"",null,null,null,null,null,null,null,null,null,null,null,null,null,null,null,""]
["","",null,"","","","","","",null,"",null,null,null,null,"","",null,"",null,null,null,null,null,null,null,null,null,null,null,null,null,null,null,""]
["","",null,"","","","","","",null,"",null,null,null,null,"","",null,"",null,null,null,null,null,null,null,null,null,null,null,null,null,null,null,""]
["","",null,"","","","","","",null,"",null,null,null,null,"","",null,"",null,null,null,null,null,null,null,null,null,null,null,null,null,null,null,""]
["","",null,"","","","","","",null,"",null,null,null,null,"","",null,"",null,null,null,null,null,null,null,null,null,null,null,null,null,null,null,""]
["","",null,"","","","","","",null,"",null,null,null,null,"","",null,"",null,null,null,null,null,null,null,null,null,null,null,null,null,null,null,""]
["","",null,"","","","","","",null,"",null,null,null,null,"","",null,"",null,null,null,null,null,null,null,null,null,null,null,null,null,null,null,""]
["","",null,"","","","","","",null,"",null,null,null,null,"","",null,"",null,null,null,null,null,null,null,null,null,null,null,null,null,null,null,""]
["","",null,"","","","","","",null,"",null,null,null,null,"","",null,"",null,null,null,null,null,null,null,null,null,null,null,null,null,null,null,""]
["","",null,"","","","","","",null,"",null,null,null,null,"","",null,"",null,null,null,null,null,null,null,null,null,null,null,null,null,null,null,""]
["","",null,"","","","","","",null,"",null,null,null,null,"","",null,"",null,null,null,null,null,null,null,null,null,null,null,null,null,null,null,""]
["","",null,"","","","","","",null,"",null,null,null,null,"","",null,"",null,null,null,null,null,null,null,null,null,null,null,null,null,null,null,""]
["","",null,"","","","","","",null,"",null,null,null,null,"","",null,"",null,null,null,null,null,null,null,null,null,null,null,null,null,null,null,""]
["","",null,"","","","","","",null,"",null,null,null,null,"","",null,"",null,null,null,null,null,null,null,null,null,null,null,null,null,null,null,""]
["","",null,"","","","","","",null,"",null,null,null,null,"","",null,"",null,null,null,null,null,null,null,null,null,null,null,null,null,null,null,""]
["","",null,"","","","","","",null,"",null,null,null,null,"","",null,"",null,null,null,null,null,null,null,null,null,null,null,null,null,null,null,""]
["","",null,{"$f":"IF(A195<>\"\",2,\"\")","v":""},{"$f":"IF(A195<>\"\",3,\"\")","v":""},{"$f":"IF(A195<>\"\",1,\"\")","v":""},{"$f":"IF(A195<>\"\",1,\"\")","v":""},"",{"$f":"IF(IF((ROUNDDOWN(AM195,4)*10000)-ROUNDDOWN(AM195,3)*10000>5,ROUNDUP(AM195,3)+0.001,ROUNDUP(AM195,3))=0,\"\",IF((ROUNDDOWN(AM195,4)*10000)-ROUNDDOWN(AM195,3)*10000>5,ROUNDUP(AM195,3)+0.001,ROUNDUP(AM195,3)))","v":""},null,{"$f":"IF(AH195>0,IF(ROUNDDOWN(I195*J195,0)+ROUNDDOWN(ROUNDDOWN(I195*J195,0)*AJ195%,0)+ROUNDDOWN((ROUNDDOWN(I195*J195,0)+ROUNDDOWN(ROUNDDOWN(I195*J195,0)*AJ195%,0))*AK195%,0)+ROUNDDOWN((P195+Q195)*AL195%,0)-AH195>(I195*J195)*1%,0,IF(ROUNDDOWN(I195*J195,0)+ROUNDDOWN(ROUNDDOWN(I195*J195,0)*AJ195%,0)+ROUNDDOWN((ROUNDDOWN(I195*J195,0)+ROUNDDOWN(ROUNDDOWN(I195*J195,0)*AJ195%,0))*AK195%,0)+ROUNDDOWN((P195+Q195)*AL195%,0)-AH195<0,0,ROUNDDOWN(I195*J195,0)+ROUNDDOWN(ROUNDDOWN(I195*J195,0)*AJ195%,0)+ROUNDDOWN((ROUNDDOWN(I195*J195,0)+ROUNDDOWN(ROUNDDOWN(I195*J195,0)*AJ195%,0))*AK195%,0)+ROUNDDOWN((P195+Q195)*AL195%,0)-AH195)),\"\")","v":""},null,null,null,null,{"$f":"IF(AH195>0,ROUNDDOWN(ROUNDDOWN(I195*J195,0)*AJ195%,0),\"\")","v":""},{"$f":"IF(AH195>0,ROUNDDOWN((ROUNDDOWN(I195*J195,0)+ROUNDDOWN(ROUNDDOWN(I195*J195,0)*AJ195%,0))*AK195%,0),\"\")","v":""},null,"",null,null,null,null,null,null,null,null,null,null,null,null,null,null,null,{"$f":"IF(AH195>0,ROUNDDOWN(I195*J195,0)+ROUNDDOWN(ROUNDDOWN(I195*J195,0)*AJ195%,0)+ROUNDDOWN((ROUNDDOWN(I195*J195,0)+ROUNDDOWN(ROUNDDOWN(I195*J195,0)*AJ195%,0))*AK195%,0)+ROUNDDOWN((P195+Q195)*AL195%,0)-AH195-K195,\"\")","v":""}]
[{"$f":"IF(AH196>0,A195+1,\"\")","v":""},{"$f":"IF(AH196>0,B195,\"\")","v":""},null,"","","","",{"$f":"IF(AH196>0,B195,\"\")","v":""},"",null,"",null,null,null,null,"","",null,{"$f":"IF(AH196>0,S195,\"\")","v":""},null,null,null,null,null,null,null,null,null,null,null,null,null,null,null,""]
["","",null,"","","","","","",null,"",null,null,null,null,"","",null,"",null,null,null,null,null,null,null,null,null,null,null,null,null,null,null,""]
["","",null,"","","","","","",null,"",null,null,null,null,"","",null,"",null,null,null,null,null,null,null,null,null,null,null,null,null,null,null,""]
["","",null,"","","","","","",null,"",null,null,null,null,"","",null,"",null,null,null,null,null,null,null,null,null,null,null,null,null,null,null,""]
["","",null,"","","","","","",null,"",null,null,null,null,"","",null,"",null,null,null,null,null,null,null,null,null,null,null,null,null,null,null,""]

{"sheet":"طلای خام","index":1,"n_rows":200,"n_cols":34,"rows_kept":200,"cut":false,"hidden":false,"merged":[]}
["شماره فاکتور ","کد طرف حساب ","تاریخ ","نوع","الگو","موضوع","روش تسویه","کد کالا ","تعداد ","مبلغ واحد","مبلغ تخفیف",null,null,null,null,null,null,null,"عیار",null,null,null,null,null,null,null,null,null,null,null,null,null,null,"پرداخت شده "]
[100,100,"1404-06-24",{"$f":"IF(A2<>\"\",2,\"\")","v":2},{"$f":"IF(A2<>\"\",3,\"\")","v":3},{"$f":"IF(A2<>\"\",1,\"\")","v":1},{"$f":"IF(A2<>\"\",1,\"\")","v":1},100,{"$f":"IFERROR(IF(ROUNDUP(AH2/J2,2)=0,\"\",ROUNDUP(AH2/J2,2)),\"\")","v":4.8199999999999994},66050000,{"$f":"IFERROR(IF(ROUNDDOWN(I2*J2,0)-AH2=0,\"\",ROUNDDOWN(I2*J2,0)-AH2),\"\")","v":361000},null,null,null,null,null,null,null,750,null,null,null,null,null,null,null,null,null,null,null,null,null,null,318000000]
[{"$f":"IF(AH3>0,A2+1,\"\")","v":101},{"$f":"IF(AH3>0,B2,\"\")","v":100},"1404-06-24",{"$f":"IF(A3<>\"\",2,\"\")","v":2},{"$f":"IF(A3<>\"\",3,\"\")","v":3},{"$f":"IF(A3<>\"\",1,\"\")","v":1},{"$f":"IF(A3<>\"\",1,\"\")","v":1},{"$f":"IF(AH3>0,B2,\"\")","v":100},{"$f":"IFERROR(IF(ROUNDUP(AH3/J3,2)=0,\"\",ROUNDUP(AH3/J3,2)),\"\")","v":6.02},52850000,{"$f":"IFERROR(IF(ROUNDDOWN(I3*J3,0)-AH3=0,\"\",ROUNDDOWN(I3*J3,0)-AH3),\"\")","v":157000},null,null,null,null,null,null,null,{"$f":"IF(AH3>0,S2,\"\")","v":750},null,null,null,null,null,null,null,null,null,null,null,null,null,null,318000000]
[{"$f":"IF(AH4>0,A3+1,\"\")","v":102},{"$f":"IF(AH4>0,B3,\"\")","v":100},"1404-06-24",2,3,1,1,{"$f":"IF(AH4>0,B3,\"\")","v":100},6.08,52370000,409600,null,null,null,null,null,null,null,{"$f":"IF(AH4>0,S3,\"\")","v":750},null,null,null,null,null,null,null,null,null,null,null,null,null,null,318000000]
[103,100,"1404-06-24",2,3,1,1,100,5.9399999999999995,53550000,87000,null,null,null,null,null,null,null,750,null,null,null,null,null,null,null,null,null,null,null,null,null,null,318000000]
[104,100,"1404-06-24",2,3,1,1,100,6.08,52310000,44800,null,null,null,null,null,null,null,750,null,null,null,null,null,null,null,null,null,null,null,null,null,null,318000000]
[105,100,"1404-06-24",2,3,1,1,100,6.08,52310000,44800,null,null,null,null,null,null,null,750,null,null,null,null,null,null,null,null,null,null,null,null,null,null,318000000]
[106,100,"1404-06-24",2,3,1,1,100,6.06,52530000,331800,null,null,null,null,null,null,null,750,null,null,null,null,null,null,null,null,null,null,null,null,null,null,318000000]
[107,100,"1404-06-24",2,3,1,1,100,5.67,56170000,483900,null,null,null,null,null,null,null,750,null,null,null,null,null,null,null,null,null,null,null,null,null,null,318000000]
[108,100,"1404-06-24",2,3,1,1,100,5.6899999999999995,55940000,298600,null,null,null,null,null,null,null,750,null,null,null,null,null,null,null,null,null,null,null,null,null,null,318000000]
["","",null,{"$f":"IF(A11<>\"\",2,\"\")","v":""},{"$f":"IF(A11<>\"\",3,\"\")","v":""},{"$f":"IF(A11<>\"\",1,\"\")","v":""},{"$f":"IF(A11<>\"\",1,\"\")","v":""},"","",null,"",null,null,null,null,null,null,null,""]
["","",null,"","","","","","",null,{"$f":"IFERROR(IF(ROUNDDOWN(I12*J12,0)-AH12=0,\"\",ROUNDDOWN(I12*J12,0)-AH12),\"\")","v":""},null,null,null,null,null,null,null,""]
["","",null,"","","","","","",null,"",null,null,null,null,null,null,null,""]
["","",null,"","","","","","",null,"",null,null,null,null,null,null,null,""]
["","",null,"","","","","","",null,"",null,null,null,null,null,null,null,""]
["","",null,"","","","","","",null,"",null,null,null,null,null,null,null,""]
["","",null,"","","","","","",null,"",null,null,null,null,null,null,null,""]
["","",null,"","","","","","",null,"",null,null,null,null,null,null,null,""]
["","",null,"","","","","","",null,"",null,null,null,null,null,null,null,""]
["","",null,"","","","","","",null,"",null,null,null,null,null,null,null,""]
["","",null,"","","","","","",null,"",null,null,null,null,null,null,null,""]
["","",null,"","","","","","",null,"",null,null,null,null,null,null,null,""]
["","",null,"","","","","","",null,"",null,null,null,null,null,null,null,""]
["","",null,"","","","","","",null,"",null,null,null,null,null,null,null,""]
["","",null,"","","","","","",null,"",null,null,null,null,null,null,null,""]
["","",null,"","","","","","",null,"",null,null,null,null,null,null,null,""]
["","",null,"","","","","","",null,"",null,null,null,null,null,null,null,""]
["","",null,"","","","","","",null,"",null,null,null,null,null,null,null,""]
["","",null,"","","","","","",null,"",null,null,null,null,null,null,null,""]
["","",null,"","","","","","",null,"",null,null,null,null,null,null,null,""]
["","",null,"","","","","","",null,"",null,null,null,null,null,null,null,""]
["","",null,"","","","","","",null,"",null,null,null,null,null,null,null,""]
["","",null,"","","","","","",null,"",null,null,null,null,null,null,null,""]
["","",null,"","","","","","",null,"",null,null,null,null,null,null,null,""]
["","",null,"","","","","","",null,"",null,null,null,null,null,null,null,""]
["","",null,"","","","","","",null,"",null,null,null,null,null,null,null,""]
["","",null,"","","","","","",null,"",null,null,null,null,null,null,null,""]
["","",null,"","","","","","",null,"",null,null,null,null,null,null,null,""]
["","",null,"","","","","","",null,"",null,null,null,null,null,null,null,""]
["","",null,"","","","","","",null,"",null,null,null,null,null,null,null,""]
["","",null,"","","","","","",null,"",null,null,null,null,null,null,null,""]
["","",null,"","","","","","",null,"",null,null,null,null,null,null,null,""]
["","",null,"","","","","","",null,"",null,null,null,null,null,null,null,""]
["","",null,"","","","","","",null,"",null,null,null,null,null,null,null,""]
["","",null,"","","","","","",null,"",null,null,null,null,null,null,null,""]
["","",null,"","","","","","",null,"",null,null,null,null,null,null,null,""]
["","",null,"","","","","","",null,"",null,null,null,null,null,null,null,""]
["","",null,"","","","","","",null,"",null,null,null,null,null,null,null,""]
["","",null,"","","","","","",null,"",null,null,null,null,null,null,null,""]
["","",null,"","","","","","",null,"",null,null,null,null,null,null,null,""]
["","",null,"","","","","","",null,"",null,null,null,null,null,null,null,""]
["","",null,"","","","","","",null,"",null,null,null,null,null,null,null,""]
["","",null,"","","","","","",null,"",null,null,null,null,null,null,null,""]
["","",null,"","","","","","",null,"",null,null,null,null,null,null,null,""]
["","",null,"","","","","","",null,"",null,null,null,null,null,null,null,""]
["","",null,"","","","","","",null,"",null,null,null,null,null,null,null,""]
["","",null,"","","","","","",null,"",null,null,null,null,null,null,null,""]
["","",null,"","","","","","",null,"",null,null,null,null,null,null,null,""]
["","",null,"","","","","","",null,"",null,null,null,null,null,null,null,""]
["","",null,"","","","","","",null,"",null,null,null,null,null,null,null,""]
["","",null,"","","","","","",null,"",null,null,null,null,null,null,null,""]
["","",null,"","","","","","",null,"",null,null,null,null,null,null,null,""]
["","",null,"","","","","","",null,"",null,null,null,null,null,null,null,""]
["","",null,"","","","","","",null,"",null,null,null,null,null,null,null,""]
["","",null,"","","","","","",null,"",null,null,null,null,null,null,null,""]
["","",null,"","","","","","",null,"",null,null,null,null,null,null,null,""]
["","",null,"","","","","",{"$f":"IFERROR(IF(ROUNDUP(AH67/J67,2)=0,\"\",ROUNDUP(AH67/J67,2)),\"\")","v":""},null,"",null,null,null,null,null,null,null,""]
[{"$f":"IF(AH68>0,A67+1,\"\")","v":""},{"$f":"IF(AH68>0,B67,\"\")","v":""},null,"","","","",{"$f":"IF(AH68>0,B67,\"\")","v":""},"",null,"",null,null,null,null,null,null,null,{"$f":"IF(AH68>0,S67,\"\")","v":""}]
["","",null,"","","","","","",null,"",null,null,null,null,null,null,null,""]
["","",null,"","","","","","",null,"",null,null,null,null,null,null,null,""]
["","",null,"","","","","","",null,"",null,null,null,null,null,null,null,""]
["","",null,"","","","","","",null,"",null,null,null,null,null,null,null,""]
["","",null,"","","","","","",null,"",null,null,null,null,null,null,null,""]
["","",null,"","","","","","",null,"",null,null,null,null,null,null,null,""]
["","",null,{"$f":"IF(A75<>\"\",2,\"\")","v":""},{"$f":"IF(A75<>\"\",3,\"\")","v":""},{"$f":"IF(A75<>\"\",1,\"\")","v":""},{"$f":"IF(A75<>\"\",1,\"\")","v":""},"","",null,"",null,null,null,null,null,null,null,""]
["","",null,"","","","","","",null,{"$f":"IFERROR(IF(ROUNDDOWN(I76*J76,0)-AH76=0,\"\",ROUNDDOWN(I76*J76,0)-AH76),\"\")","v":""},null,null,null,null,null,null,null,""]
["","",null,"","","","","","",null,"",null,null,null,null,null,null,null,""]
["","",null,"","","","","","",null,"",null,null,null,null,null,null,null,""]
["","",null,"","","","","","",null,"",null,null,null,null,null,null,null,""]
["","",null,"","","","","","",null,"",null,null,null,null,null,null,null,""]
["","",null,"","","","","","",null,"",null,null,null,null,null,null,null,""]
["","",null,"","","","","","",null,"",null,null,null,null,null,null,null,""]
["","",null,"","","","","","",null,"",null,null,null,null,null,null,null,""]
["","",null,"","","","","","",null,"",null,null,null,null,null,null,null,""]
["","",null,"","","","","","",null,"",null,null,null,null,null,null,null,""]
["","",null,"","","","","","",null,"",null,null,null,null,null,null,null,""]
["","",null,"","","","","","",null,"",null,null,null,null,null,null,null,""]
["","",null,"","","","","","",null,"",null,null,null,null,null,null,null,""]
["","",null,"","","","","","",null,"",null,null,null,null,null,null,null,""]
["","",null,"","","","","","",null,"",null,null,null,null,null,null,null,""]
["","",null,"","","","","","",null,"",null,null,null,null,null,null,null,""]
["","",null,"","","","","","",null,"",null,null,null,null,null,null,null,""]
["","",null,"","","","","","",null,"",null,null,null,null,null,null,null,""]
["","",null,"","","","","","",null,"",null,null,null,null,null,null,null,""]
["","",null,"","","","","","",null,"",null,null,null,null,null,null,null,""]
["","",null,"","","","","","",null,"",null,null,null,null,null,null,null,""]
["","",null,"","","","","","",null,"",null,null,null,null,null,null,null,""]
["","",null,"","","","","","",null,"",null,null,null,null,null,null,null,""]
["","",null,"","","","","","",null,"",null,null,null,null,null,null,null,""]
["","",null,"","","","","","",null,"",null,null,null,null,null,null,null,""]
["","",null,"","","","","","",null,"",null,null,null,null,null,null,null,""]
["","",null,"","","","","","",null,"",null,null,null,null,null,null,null,""]
["","",null,"","","","","","",null,"",null,null,null,null,null,null,null,""]
["","",null,"","","","","","",null,"",null,null,null,null,null,null,null,""]
["","",null,"","","","","","",null,"",null,null,null,null,null,null,null,""]
["","",null,"","","","","","",null,"",null,null,null,null,null,null,null,""]
["","",null,"","","","","","",null,"",null,null,null,null,null,null,null,""]
["","",null,"","","","","","",null,"",null,null,null,null,null,null,null,""]
["","",null,"","","","","","",null,"",null,null,null,null,null,null,null,""]
["","",null,"","","","","","",null,"",null,null,null,null,null,null,null,""]
["","",null,"","","","","","",null,"",null,null,null,null,null,null,null,""]
["","",null,"","","","","","",null,"",null,null,null,null,null,null,null,""]
["","",null,"","","","","","",null,"",null,null,null,null,null,null,null,""]
["","",null,"","","","","","",null,"",null,null,null,null,null,null,null,""]
["","",null,"","","","","","",null,"",null,null,null,null,null,null,null,""]
["","",null,"","","","","","",null,"",null,null,null,null,null,null,null,""]
["","",null,"","","","","","",null,"",null,null,null,null,null,null,null,""]
["","",null,"","","","","","",null,"",null,null,null,null,null,null,null,""]
["","",null,"","","","","","",null,"",null,null,null,null,null,null,null,""]
["","",null,"","","","","","",null,"",null,null,null,null,null,null,null,""]
["","",null,"","","","","","",null,"",null,null,null,null,null,null,null,""]
["","",null,"","","","","","",null,"",null,null,null,null,null,null,null,""]
["","",null,"","","","","","",null,"",null,null,null,null,null,null,null,""]
["","",null,"","","","","","",null,"",null,null,null,null,null,null,null,""]
["","",null,"","","","","","",null,"",null,null,null,null,null,null,null,""]
["","",null,"","","","","","",null,"",null,null,null,null,null,null,null,""]
["","",null,"","","","","","",null,"",null,null,null,null,null,null,null,""]
["","",null,"","","","","","",null,"",null,null,null,null,null,null,null,""]
["","",null,"","","","","","",null,"",null,null,null,null,null,null,null,""]
["","",null,"","","","","","",null,"",null,null,null,null,null,null,null,""]
["","",null,"","","","","",{"$f":"IFERROR(IF(ROUNDUP(AH131/J131,2)=0,\"\",ROUNDUP(AH131/J131,2)),\"\")","v":""},null,"",null,null,null,null,null,null,null,""]
[{"$f":"IF(AH132>0,A131+1,\"\")","v":""},{"$f":"IF(AH132>0,B131,\"\")","v":""},null,"","","","",{"$f":"IF(AH132>0,B131,\"\")","v":""},"",null,"",null,null,null,null,null,null,null,{"$f":"IF(AH132>0,S131,\"\")","v":""}]
["","",null,"","","","","","",null,"",null,null,null,null,null,null,null,""]
["","",null,"","","","","","",null,"",null,null,null,null,null,null,null,""]
["","",null,"","","","","","",null,"",null,null,null,null,null,null,null,""]
["","",null,"","","","","","",null,"",null,null,null,null,null,null,null,""]
["","",null,"","","","","","",null,"",null,null,null,null,null,null,null,""]
["","",null,"","","","","","",null,"",null,null,null,null,null,null,null,""]
["","",null,{"$f":"IF(A139<>\"\",2,\"\")","v":""},{"$f":"IF(A139<>\"\",3,\"\")","v":""},{"$f":"IF(A139<>\"\",1,\"\")","v":""},{"$f":"IF(A139<>\"\",1,\"\")","v":""},"","",null,"",null,null,null,null,null,null,null,""]
["","",null,"","","","","","",null,{"$f":"IFERROR(IF(ROUNDDOWN(I140*J140,0)-AH140=0,\"\",ROUNDDOWN(I140*J140,0)-AH140),\"\")","v":""},null,null,null,null,null,null,null,""]
["","",null,"","","","","","",null,"",null,null,null,null,null,null,null,""]
["","",null,"","","","","","",null,"",null,null,null,null,null,null,null,""]
["","",null,"","","","","","",null,"",null,null,null,null,null,null,null,""]
["","",null,"","","","","","",null,"",null,null,null,null,null,null,null,""]
["","",null,"","","","","","",null,"",null,null,null,null,null,null,null,""]
["","",null,"","","","","","",null,"",null,null,null,null,null,null,null,""]
["","",null,"","","","","","",null,"",null,null,null,null,null,null,null,""]
["","",null,"","","","","","",null,"",null,null,null,null,null,null,null,""]
["","",null,"","","","","","",null,"",null,null,null,null,null,null,null,""]
["","",null,"","","","","","",null,"",null,null,null,null,null,null,null,""]
["","",null,"","","","","","",null,"",null,null,null,null,null,null,null,""]
["","",null,"","","","","","",null,"",null,null,null,null,null,null,null,""]
["","",null,"","","","","","",null,"",null,null,null,null,null,null,null,""]
["","",null,"","","","","","",null,"",null,null,null,null,null,null,null,""]
["","",null,"","","","","","",null,"",null,null,null,null,null,null,null,""]
["","",null,"","","","","","",null,"",null,null,null,null,null,null,null,""]
["","",null,"","","","","","",null,"",null,null,null,null,null,null,null,""]
["","",null,"","","","","","",null,"",null,null,null,null,null,null,null,""]
["","",null,"","","","","","",null,"",null,null,null,null,null,null,null,""]
["","",null,"","","","","","",null,"",null,null,null,null,null,null,null,""]
["","",null,"","","","","","",null,"",null,null,null,null,null,null,null,""]
["","",null,"","","","","","",null,"",null,null,null,null,null,null,null,""]
["","",null,"","","","","","",null,"",null,null,null,null,null,null,null,""]
["","",null,"","","","","","",null,"",null,null,null,null,null,null,null,""]
["","",null,"","","","","","",null,"",null,null,null,null,null,null,null,""]
["","",null,"","","","","","",null,"",null,null,null,null,null,null,null,""]
["","",null,"","","","","","",null,"",null,null,null,null,null,null,null,""]
["","",null,"","","","","","",null,"",null,null,null,null,null,null,null,""]
["","",null,"","","","","","",null,"",null,null,null,null,null,null,null,""]
["","",null,"","","","","","",null,"",null,null,null,null,null,null,null,""]
["","",null,"","","","","","",null,"",null,null,null,null,null,null,null,""]
["","",null,"","","","","","",null,"",null,null,null,null,null,null,null,""]
["","",null,"","","","","","",null,"",null,null,null,null,null,null,null,""]
["","",null,"","","","","","",null,"",null,null,null,null,null,null,null,""]
["","",null,"","","","","","",null,"",null,null,null,null,null,null,null,""]
["","",null,"","","","","","",null,"",null,null,null,null,null,null,null,""]
["","",null,"","","","","","",null,"",null,null,null,null,null,null,null,""]
["","",null,"","","","","","",null,"",null,null,null,null,null,null,null,""]
["","",null,"","","","","","",null,"",null,null,null,null,null,null,null,""]
["","",null,"","","","","","",null,"",null,null,null,null,null,null,null,""]
["","",null,"","","","","","",null,"",null,null,null,null,null,null,null,""]
["","",null,"","","","","","",null,"",null,null,null,null,null,null,null,""]
["","",null,"","","","","","",null,"",null,null,null,null,null,null,null,""]
["","",null,"","","","","","",null,"",null,null,null,null,null,null,null,""]
["","",null,"","","","","","",null,"",null,null,null,null,null,null,null,""]
["","",null,"","","","","","",null,"",null,null,null,null,null,null,null,""]
["","",null,"","","","","","",null,"",null,null,null,null,null,null,null,""]
["","",null,"","","","","","",null,"",null,null,null,null,null,null,null,""]
["","",null,"","","","","","",null,"",null,null,null,null,null,null,null,""]
["","",null,"","","","","","",null,"",null,null,null,null,null,null,null,""]
["","",null,"","","","","","",null,"",null,null,null,null,null,null,null,""]
["","",null,"","","","","","",null,"",null,null,null,null,null,null,null,""]
["","",null,"","","","","","",null,"",null,null,null,null,null,null,null,""]
["","",null,"","","","","","",null,"",null,null,null,null,null,null,null,""]
["","",null,"","","","","",{"$f":"IFERROR(IF(ROUNDUP(AH195/J195,2)=0,\"\",ROUNDUP(AH195/J195,2)),\"\")","v":""},null,"",null,null,null,null,null,null,null,""]
[{"$f":"IF(AH196>0,A195+1,\"\")","v":""},{"$f":"IF(AH196>0,B195,\"\")","v":""},null,"","","","",{"$f":"IF(AH196>0,B195,\"\")","v":""},"",null,"",null,null,null,null,null,null,null,{"$f":"IF(AH196>0,S195,\"\")","v":""}]
["","",null,"","","","","","",null,"",null,null,null,null,null,null,null,""]
["","",null,"","","","","","",null,"",null,null,null,null,null,null,null,""]
["","",null,"","","","","","",null,"",null,null,null,null,null,null,null,""]
["","",null,"","","","","","",null,"",null,null,null,null,null,null,null,""]

{"sheet":"فرمت به کارفرما","index":2,"n_rows":21,"n_cols":11,"rows_kept":21,"cut":false,"hidden":false,"merged":[]}
["شماره فاکتور ","کد طرف حساب ","ردیف ","تاریخ ","نام کالا ","وزن ","مظنه- قیمت روز هر گرم","اجرت ","سود ","مبلغ دریافتی ","عیار"]
[100,{"$f":"IF(J2>0,100,\"\")","v":""},1]
[{"$f":"IF(J3>0,A2+1,\"\")","v":""},"",2]
["","",3]
["","",4]
["","",5]
["","",6]
["","",7]
["","",8]
["","",9]
["","",10]
["","",11]
["","",12]
["","",13]
["","",14]
["","",15]
["","",16]
["","",17]
["","",18]
["","",19]
["","",20]

{"sheet":"توضیحات","index":3,"n_rows":5,"n_cols":2,"rows_kept":5,"cut":false,"hidden":false,"merged":[[1,1,1,17],[2,1,2,17],[4,1,4,17],[3,1,3,17]]}
[]
[null,"موارد زرد رنگ تکمیل شود."]
[null,"در استونها فرمول وجود دارد به هیچ عنوان دستکاری نشود پس از تکمیل اطلاعات در شیت طلا با سود و اجرت  و تکمیل موراد زرد رنگ دکمه ctrl+m را فشار دهید که به صورت اتوماتیک وزن، مبلغ تخفیف، اجرت ساخت، سود فروشنده را محاسبه خواهد نمود. "]
[null,"در این قسمتها فرمول دارد اما اگر در صورت نیاز میتوانید خودتان تغییر دهید "]
[null,"برای هر دو  دو اکسل از الگوی  \" نرم افزار قدیمی - طلا و جواهر\"  میتوانید استفاده کنید. "]